fUST/lending_fUST_20240812
["ID","MTS","AMOUNT","RATE_DAILY","PERIOD"]
[334679170,1723467049292,-211.129032,0.00020998,2]
[334679171,1723467049302,-211.129032,0.00020998,2]
[334679172,1723467049314,-151.0,0.00020998,2]
[334679173,1723467049324,-171.60594,0.00020998,2]
[334679174,1723467049333,-171.60594,0.00020998,2]
[334679175,1723467049343,-8081.48765922,0.00020999,2]
[334679176,1723467050014,4118.49392147,0.00012,2]
[334679178,1723467071531,1763.75242219,0.00014545,2]
[334679179,1723467072950,1916.22118036,0.00014545,2]
[334679180,1723467074260,2058.30872197,0.00014545,2]
[334679181,1723467078111,908.9442352,0.00014545,2]
[334679182,1723467082029,55434.59759481,0.00014545,2]
[334679183,1723467083644,636.65531725,0.00014545,2]
[334679184,1723467084297,154.74467129,0.00014545,2]
[334679185,1723467084496,30561.27088758,0.00014545,2]
[334679186,1723467087317,42383.12825852,0.00014545,2]
[334679187,1723467087617,410.95175208,0.00014545,2]
[334679188,1723467090459,351.0284725,0.00014545,2]
[334679189,1723467092209,9652.40516915,0.00014545,2]
[334679190,1723467141766,154.74467129,0.00014545,2]
[334679191,1723467154026,1600.0,0.00013537,2]
[334679192,1723467159045,184.18341077,9.9e-05,2]
[334679193,1723467232487,168.515245,0.00014247,2]
[334679194,1723467247760,154.77557233,9.9e-05,2]
[334679195,1723467314403,3000.0,0.00027,120]
[334679196,1723467340507,35044.64616853,0.00012,2]
[334679197,1723467380527,13812.08995318,0.00014545,2]
[334679202,1723467396079,295.13577166,0.00014545,2]
[334679203,1723467407919,218.30768663,0.00014545,2]
[334679204,1723467441436,205.88,0.00010959,2]
[334679205,1723467469183,9115.9890598,0.00013283,2]
[334679206,1723467477263,183.12142007,0.00013283,2]
[334679207,1723467478228,493.86054622,0.00015,2]
[334679208,1723467489082,155.54138296,0.00010959,2]
[334679209,1723467489943,3785.54866294,0.00010959,2]
[334679210,1723467496293,271.95561008,0.00013283,2]
[334679211,1723467510531,549.43994442,0.00013283,2]
[334679212,1723467516657,200.00896534,0.00010959,2]
[334679213,1723467530721,273.37336231,9.9e-05,2]
[334679214,1723467546512,273.37336231,9.9e-05,2]
[334679215,1723467562802,273.37336231,9.9e-05,2]
[334679216,1723467578155,273.37336231,9.9e-05,2]
[334679217,1723467594239,155.9660416,9.9e-05,2]
[334679218,1723467605308,155.73277875,0.00012,2]
[334679219,1723467635135,601.6533504,0.00012,2]
[334679220,1723467635409,155.61854331,0.00012,2]
[334679221,1723467635571,203.07210661,0.00012,2]
[334679222,1723467638152,181.01298371,0.00012,2]
[334679223,1723467640955,201.95607837,0.00012,2]
[334679224,1723467642576,183.06078838,0.00012,2]
[334679225,1723467643040,228.17184227,0.00014545,2]
[334679226,1723467647197,309.38127527,0.00014545,2]
[334679227,1723467647425,342.05014288,0.00014545,2]
[334679228,1723467648932,392.4387368,0.00014545,2]
[334679229,1723467651557,568.56884199,0.00014545,2]
[334679230,1723467655242,288.74976129,0.00014545,2]
[334679231,1723467656218,4712.37284123,0.00014545,2]
[334679232,1723467657341,154.97310152,0.00014545,2]
[334679233,1723467657455,154.80808241,0.00014545,2]
[334679234,1723467657549,1626.86783463,0.00014545,2]
[334679235,1723467658301,155.24938,0.00014545,2]
[334679236,1723467660222,303.95042838,0.00014545,2]
[334679237,1723467662088,155.16159397,0.00014545,2]
[334679238,1723467662691,942.61257937,0.00014545,2]
[334679239,1723467664204,542.94098629,0.00014545,2]
[334679240,1723467664311,205.1880395,0.00014545,2]
[334679241,1723467665518,519.59956575,0.00014545,2]
[334679242,1723467665820,185.89004347,0.00014545,2]
[334679243,1723467667984,927.70779306,0.00014545,2]
[334679244,1723467668025,200.0,0.00014545,2]
[334679245,1723467668714,404.65460675,0.00014545,2]
[334679246,1723467668794,319.72766707,0.00014545,2]
[334679247,1723467669048,159.24043179,0.00014545,2]
[334679248,1723467669232,533.92328189,0.00014545,2]
[334679249,1723467669515,12496.81139471,0.00014545,2]
[334679250,1723467670375,2108.40472945,0.00014545,2]
[334679251,1723467671335,433.28919733,0.00014545,2]
[334679252,1723467671548,440.8199079,0.00014545,2]
[334679253,1723467672973,260.34537136,0.00014545,2]
[334679254,1723467673205,154.93824139,0.00014545,2]
[334679255,1723467674374,159.8334621,0.00014545,2]
[334679256,1723467674942,180.43272034,0.00014545,2]
[334679257,1723467675782,220.5776939,0.00014545,2]
[334679258,1723467679307,155.96137292,0.00014545,2]
[334679259,1723467683116,155.09355553,0.00014545,2]
[334679260,1723467683496,453.03707227,0.00014545,2]
[334679261,1723467684731,155.07948823,0.00014545,2]
[334679262,1723467687780,3048.65447567,0.00014545,2]
[334679263,1723467688205,260.82372856,0.00014545,2]
[334679264,1723467689246,155.05477069,0.00014545,2]
[334679265,1723467689779,156.61103376,0.00014545,2]
[334679266,1723467693600,4164.89963694,0.00015,2]
[334679267,1723467694131,241.128892,0.00014545,2]
[334679268,1723467699363,154.84615865,0.00014545,2]
[334679269,1723467699922,290.31500293,0.00014545,2]
[334679270,1723467700383,3607.53129253,0.00014545,2]
[334679271,1723467705729,704.30449595,0.00015,2]
[334679278,1723467711943,814.3171448,0.00014309,2]
[334679279,1723467740486,164.026916,0.00014247,2]
[334679281,1723467818512,173.065526,0.00014304,2]
[334679282,1723467958960,6915.81904049,0.00014486,2]
[334679283,1723467958998,17984.18095951,0.00014486,2]
[334679284,1723468032151,-250.0,0.00015213,2]
[334679285,1723468032173,-250.0,0.00015255,2]
[334679286,1723468032195,-250.0,0.00015297,2]
[334679287,1723468032219,-250.0,0.00015339,2]
[334679288,1723468032241,-250.0,0.0001538,2]
[334679289,1723468032439,-250.0,0.00015422,2]
[334679290,1723468032466,-250.0,0.00015464,2]
[334679291,1723468032488,-250.0,0.00015506,2]
[334679292,1723468032510,-250.0,0.00015547,2]
[334679293,1723468032534,-250.0,0.00015589,2]
[334679294,1723468032558,-4388.14292499,0.0001561,2]
[334679295,1723468032579,-250.0,0.00015631,2]
[334679296,1723468032600,-250.0,0.00015672,2]
[334679297,1723468032622,-150.112233,0.000157,2]
[334679298,1723468032646,-300.0,0.00015707,2]
[334679299,1723468032667,-9950.21223904,0.00015708,2]
[334679300,1723468032688,-500.0,0.00015708,2]
[334679301,1723468032713,-500.0,0.00015708,2]
[334679302,1723468032735,-500.0,0.00015708,2]
[334679303,1723468032756,-500.0,0.00015708,2]
[334679304,1723468032777,-500.0,0.00015708,2]
[334679305,1723468032797,-500.0,0.00015708,2]
[334679306,1723468032818,-500.0,0.00015708,2]
[334679307,1723468032839,-500.0,0.00015708,2]
[334679308,1723468032860,-500.0,0.00015708,2]
[334679309,1723468032881,-500.0,0.00015708,2]
[334679310,1723468032902,-395.86335074,0.00015708,2]
[334679311,1723468032922,-42383.12825852,0.00015709,2]
[334679312,1723468032943,-55434.59759481,0.00015709,2]
[334679313,1723468032967,-500.0,0.0001571,2]
[334679314,1723468032988,-525.23655517,0.0001571,2]
[334679315,1723468033010,-500.0,0.0001571,2]
[334679316,1723468033033,-500.0,0.0001571,2]
[334679317,1723468033054,-7008.86868586,0.00015712,2]
[334679318,1723468033075,-1993.38782086,0.00015712,2]
[334679319,1723468033097,-250.0,0.00015714,2]
[334679320,1723468033118,-1765.28037207,0.00015744,2]
[334679321,1723468033139,-1765.28037207,0.00015744,2]
[334679322,1723468033164,-2126.66267952,0.00015744,2]
[334679323,1723468033185,-294.41764508,0.00015751,2]
[334679324,1723468033206,-208.45850869,0.00015751,2]
[334679325,1723468033227,-728.24505159,0.00015751,2]
[334679326,1723468033249,-154.76012181,0.00015751,2]
[334679327,1723468033272,-188.43118622,0.00015751,2]
[334679328,1723468033293,-261.85849557,0.00015751,2]
[334679329,1723468033316,-250.0,0.00015756,2]
[334679330,1723468033339,-250.0,0.00015798,2]
[334679331,1723468033365,-250.0,0.00015839,2]
[334679332,1723468033388,-29683.88205852,0.00015841,2]
[334679333,1723468059095,5651.31154356,0.00014486,2]
[334679334,1723468117729,636.65531725,9.999e-05,2]
[334679335,1723468145122,-250.0,0.00015074,2]
[334679336,1723468145145,-250.0,0.00015116,2]
[334679337,1723468145167,-250.0,0.00015157,2]
[334679338,1723468145189,-250.0,0.00015198,2]
[334679339,1723468145211,-250.0,0.0001524,2]
[334679340,1723468145233,-250.0,0.00015281,2]
[334679341,1723468145254,-250.0,0.00015322,2]
[334679342,1723468145276,-250.0,0.00015364,2]
[334679343,1723468145297,-250.0,0.00015405,2]
[334679344,1723468145318,-250.0,0.00015446,2]
[334679345,1723468145345,-250.0,0.00015488,2]
[334679346,1723468145365,-250.0,0.00015529,2]
[334679347,1723468145386,-250.0,0.0001557,2]
[334679348,1723468145409,-250.0,0.00015612,2]
[334679349,1723468145431,-250.0,0.00015653,2]
[334679350,1723468145460,-250.0,0.00015694,2]
[334679351,1723468145485,-300.0,0.00015707,2]
[334679352,1723468145509,-979.60664417,0.00015708,2]
[334679353,1723468145532,-666.26224584,0.00015708,2]
[334679354,1723468153974,636.65531725,0.0001212,2]
[334679355,1723468154690,209.22780874,0.0001212,2]
[334679356,1723468157484,664.94744601,0.0001212,2]
[334679358,1723468161116,-1460.40043368,0.00015708,2]
[334679359,1723468161138,-1913.70093575,0.00015708,2]
[334679360,1723468161160,-250.0,0.00015736,2]
[334679361,1723468161181,-300.0,0.00015742,2]
[334679362,1723468161202,-174.70392323,0.00015744,2]
[334679363,1723468161223,-414.33663194,0.00015744,2]
[334679364,1723468161243,-728.24505159,0.00015744,2]
[334679365,1723468161264,-8136.3690261,0.00015746,2]
[334679366,1723468161285,-154.76012181,0.00015746,2]
[334679367,1723468161306,-1997.77647403,0.00015751,2]
[334679368,1723468161328,-2141.32258556,0.00015751,2]
[334679369,1723468161351,-250.0,0.00015777,2]
[334679370,1723468161372,-250.0,0.00015818,2]
[334679371,1723468161394,-703.637827,0.00015851,2]
[334679372,1723468161419,-165.71411466,0.00015851,2]
[334679373,1723468161440,-190.85060772,0.00015851,2]
[334679374,1723468161463,-250.0,0.0001586,2]
[334679375,1723468161486,-500.0,0.00015953,2]
[334679376,1723468161519,-500.0,0.00015953,2]
[334679377,1723468161546,-500.0,0.00015953,2]
[334679378,1723468161569,-500.0,0.00015953,2]
[334679379,1723468161593,-530.36175928,0.00015953,2]
[334679380,1723468161614,-422.01,0.00015954,2]
[334679381,1723468161636,-1269.69498838,0.00016,2]
[334679382,1723468161661,-850.24651816,0.00016095,2]
[334679383,1723468161684,-1163.86062826,0.00016095,2]
[334679384,1723468161706,-301.25996446,0.00016095,2]
[334679385,1723468161730,-223.35163588,0.0001611,2]
[334679386,1723468161754,-404.08727484,0.0001611,2]
[334679387,1723468161777,-156.98248185,0.0001611,2]
[334679388,1723468161801,-223.35163588,0.0001611,2]
[334679389,1723468161824,-159.71520453,0.00016159,2]
[334679390,1723468161848,-242.20157419,0.00016309,2]
[334679391,1723468161871,-154.88897732,0.00016347,2]
[334679392,1723468161893,-500.0,0.00016438,2]
[334679393,1723468161915,-500.0,0.00016438,2]
[334679394,1723468161937,-487.442694,0.00016438,2]
[334679395,1723468161958,-153.0,0.00016438,2]
[334679396,1723468161980,-153.0,0.00016438,2]
[334679397,1723468162003,-153.0,0.00016438,2]
[334679398,1723468162025,-153.0,0.00016438,2]
[334679399,1723468162050,-153.0,0.00016438,2]
[334679400,1723468162076,-153.0,0.00016438,2]
[334679401,1723468162101,-153.0,0.00016438,2]
[334679402,1723468162124,-153.0,0.00016438,2]
[334679403,1723468162145,-153.0,0.00016438,2]
[334679404,1723468162167,-153.0,0.00016438,2]
[334679405,1723468162189,-153.0,0.00016438,2]
[334679406,1723468162210,-153.0,0.00016438,2]
[334679407,1723468162233,-153.0,0.00016438,2]
[334679408,1723468162255,-153.0,0.00016438,2]
[334679409,1723468162282,-153.0,0.00016438,2]
[334679410,1723468162303,-153.0,0.00016438,2]
[334679411,1723468162325,-153.0,0.00016438,2]
[334679412,1723468162348,-153.0,0.00016438,2]
[334679413,1723468162369,-153.0,0.00016438,2]
[334679414,1723468162391,-153.0,0.00016438,2]
[334679415,1723468162415,-277.46411292,0.000165,2]
[334679416,1723468162440,-249.46674096,0.00016532,2]
[334679417,1723468162464,-817.03180288,0.00017,3]
[334679418,1723468162488,-300.0,0.00017178,2]
[334679419,1723468162512,-420.0,0.00017316,2]
[334679420,1723468162780,49.59420593,0.00016347,2]
[334679421,1723468163901,693.59604547,0.0001212,2]
[334679422,1723468166111,-1612.28857669,0.0001571,2]
[334679423,1723468166132,-1621.11409846,0.00015952,2]
[334679424,1723468166153,-74.84030159,0.00016347,2]
[334679425,1723468191207,636.65531725,0.0001212,2]
[334679473,1723468232232,-5738.28232452,0.00016247,2]
[334679509,1723468238378,-465.19025832,0.00016247,2]
[334679510,1723468238388,-153.0,0.00016438,2]
[334679511,1723468238399,-3839.62505934,0.00017289,2]
[334679512,1723468238408,-281.15130659,0.00017378,2]
[334679513,1723468238418,-1315.58158875,0.00017379,2]
[334679521,1723468238878,-18911.86957268,0.00017379,2]
[334679522,1723468239344,-99.31946036,0.00017379,2]
[334679555,1723468240408,-4966.04708704,0.00017379,2]
[334679558,1723468240418,-208.45850869,0.00017389,2]
[334679561,1723468240428,-188.43118622,0.00017389,2]
[334679563,1723468240441,-493.23151943,0.00017389,2]
[334679566,1723468240450,-55434.59759481,0.00017389,2]
[334679569,1723468240459,-500.0,0.00017401,2]
[334679572,1723468240469,-500.0,0.00017401,2]
[334679575,1723468240483,-417.66558862,0.00017401,2]
[334679578,1723468240493,-659.60969318,0.00017403,2]
[334679581,1723468240504,-237.6156375,0.00017403,2]
[334679585,1723468240515,-155.04029343,0.00017403,2]
[334679587,1723468240525,-269.65614473,0.00017403,7]
[334679590,1723468240535,-6825.88616298,0.00017403,2]
[334679593,1723468240544,-239.7257217,0.00017403,2]
[334679595,1723468240553,-381.83317968,0.00017403,2]
[334679598,1723468240564,-41723.5526206,0.00017548,2]
[334679601,1723468240573,-370.072531,0.00017555,2]
[334679604,1723468240583,-150.112233,0.000176,2]
[334679606,1723468240593,-472.25848256,0.00018,2]
[334679609,1723468240602,-3839.62505933,0.00018601,2]
[334679612,1723468240612,-897.92379833,0.00018657,2]
[334679615,1723468240621,-150.112233,0.000188,2]
[334679617,1723468240631,-287.862308,0.00018904,2]
[334679619,1723468240641,-154.76012181,0.00019167,2]
[334679621,1723468240653,-154.76012181,0.00019167,2]
[334679623,1723468240662,-933.18737763,0.00019177,2]
[334679625,1723468240671,-163.8569547,0.00019178,2]
[334679627,1723468240681,-161.896212,0.00019178,2]
[334679629,1723468240691,-250.0,0.00019178,2]
[334679631,1723468240700,-157.9723884,0.00019451,2]
[334679633,1723468240710,-1000.0,0.00019452,2]
[334679635,1723468240720,-1000.0,0.00019479,2]
[334679637,1723468240730,-1000.0,0.00019506,2]
[334679639,1723468240739,-174.407398,0.0001951,2]
[334679641,1723468240750,-1000.0,0.00019534,2]
[334679643,1723468240760,-1000.0,0.00019561,2]
[334679644,1723468240769,-1104.50102556,0.00019589,2]
[334679645,1723468240779,-155.29675456,0.00019814,2]
[334679646,1723468240789,-850.02521278,0.00019814,2]
[334679647,1723468240799,-236.4345591,0.00019814,2]
[334679648,1723468240808,-165.38906301,0.00019814,2]
[334679649,1723468240818,-210.39052384,0.00019814,2]
[334679650,1723468240828,-1612.28857669,0.00019814,2]
[334679651,1723468240839,-373.40086508,0.00019814,2]
[334679652,1723468240848,-1144.77523809,0.00019814,2]
[334679653,1723468240858,-414.33663194,0.00019814,2]
[334679654,1723468240868,-664.94744601,0.00019814,2]
[334679656,1723468240878,-151.90208824,0.00019822,2]
[334679657,1723468240888,-150.0,0.00019833,2]
[334679659,1723468240897,-3839.62505933,0.00019914,2]
[334679661,1723468240907,-2128.47183867,0.00019987,2]
[334679663,1723468240917,-41723.5526206,0.0001999,2]
[334679666,1723468240928,-5322.29976103,0.0002,2]
[334679667,1723468240938,-297.29551716,0.0002,2]
[334679670,1723468240947,-294.33166663,0.0002,2]
[334679672,1723468240957,-1393.14395153,0.0002,2]
[334679674,1723468240967,-2295.12425473,0.0002,14]
[334679676,1723468240977,-500.0,0.0002,2]
[334679678,1723468240987,-188.20114955,0.0002,2]
[334679680,1723468240997,-336.53868747,0.0002,2]
[334679682,1723468241007,-435.0,0.0002,2]
[334679684,1723468241017,-1824.367963,0.0002,2]
[334679685,1723468241027,-150.112233,0.0002,2]
[334679687,1723468241038,-155.05360391,0.0002,2]
[334679690,1723468241049,-1000.0,0.0002,20]
[334679692,1723468241059,-508.0,0.00020087,2]
[334679694,1723468241069,-307.1286107,0.00020274,2]
[334679696,1723468241078,-1413.0,0.00020364,2]
[334679698,1723468241089,-1009.70433,0.000204,2]
[334679700,1723468241098,-2000.0,0.00020457,2]
[334679702,1723468241108,-600.0,0.00020458,2]
[334679704,1723468241117,-174.407398,0.00020485,2]
[334679706,1723468241127,-248.98557296,0.00020547,7]
[334679708,1723468241137,-41723.5526206,0.00020547,2]
[334679710,1723468241148,-535.8651418,0.00020548,2]
[334679712,1723468241158,-535.8651418,0.00020548,2]
[334679714,1723468241168,-267.9524887,0.00020548,2]
[334679716,1723468241178,-267.9524887,0.00020548,2]
[334679718,1723468241188,-267.9524887,0.00020548,2]
[334679720,1723468241199,-267.9524887,0.00020548,2]
[334679722,1723468241209,-32843.99201717,0.00020557,3]
[334679724,1723468241219,-41723.5526206,0.00020657,2]
[334679726,1723468241228,-10261.2543879,0.00020667,11]
[334679728,1723468241239,-61332.71504841,0.00020667,2]
[334679730,1723468241250,-600.0,0.00020671,2]
[334679732,1723468241260,-150.324,0.00020714,2]
[334679734,1723468241270,-180.146,0.00020714,2]
[334679736,1723468241280,-1932.31873494,0.00020721,2]
[334679738,1723468241290,-155.00286259,0.00020721,2]
[334679740,1723468241299,-1003.18673817,0.00020726,2]
[334679742,1723468241308,-70648.63118424,0.00020811,2]
[334679871,1723468242665,-426.33331105,0.00017379,2]
[334679874,1723468242676,-494.27697419,0.00017379,2]
[334679875,1723468242686,-54522.02667776,0.00020811,2]
[334679878,1723468242696,-151.0,0.00020821,2]
[334679879,1723468242705,-505.65202889,0.00020821,3]
[334679881,1723468242716,-155.139056,0.00020821,2]
[334679883,1723468242725,-155.139056,0.00020821,2]
[334679885,1723468242735,-155.139056,0.00020821,2]
[334679887,1723468242745,-155.139056,0.00020821,2]
[334679890,1723468242755,-155.139056,0.00020821,2]
[334679891,1723468242764,-155.139056,0.00020821,2]
[334679893,1723468242774,-500.0,0.00020821,3]
[334679895,1723468242783,-500.0,0.00020821,3]
[334679897,1723468242792,-504.46139654,0.00020821,3]
[334679899,1723468242801,-505.34929325,0.00020821,3]
[334679902,1723468242810,-500.0,0.00020821,3]
[334679905,1723468242819,-500.0,0.00020821,3]
[334679907,1723468242829,-500.0,0.00020821,3]
[334679910,1723468242838,-1005.06,0.00020821,3]
[334679913,1723468242848,-500.0,0.00020821,3]
[334679916,1723468242857,-500.0,0.00020821,3]
[334679919,1723468242867,-500.0,0.00020821,3]
[334679923,1723468242876,-500.0,0.00020821,3]
[334679928,1723468242885,-500.0,0.00020821,2]
[334679931,1723468242895,-500.0,0.00020821,3]
[334679934,1723468242906,-501.90565031,0.00020821,3]
[334679937,1723468242915,-500.0,0.00020821,3]
[334679938,1723468242925,-500.0,0.00020821,3]
[334679941,1723468242934,-1332.86,0.00020821,3]
[334679943,1723468242944,-500.0,0.00020821,3]
[334679945,1723468242954,-500.0,0.00020821,3]
[334679947,1723468242963,-502.52552637,0.00020821,3]
[334679948,1723468242972,-500.0,0.00020821,3]
[334679950,1723468242982,-500.0,0.00020821,3]
[334679952,1723468242992,-287.72694153,0.00020821,3]
[334679954,1723468243001,-500.0,0.00020821,3]
[334679956,1723468243010,-500.0,0.00020821,3]
[334679958,1723468243020,-500.0,0.00020821,3]
[334679960,1723468243030,-415.02991626,0.00020821,3]
[334679962,1723468243040,-500.0,0.00020821,3]
[334679964,1723468243049,-500.0,0.00020821,3]
[334679966,1723468243058,-500.0,0.00020821,3]
[334679968,1723468243067,-500.0,0.00020821,3]
[334679970,1723468243077,-500.0,0.00020821,3]
[334679972,1723468243086,-500.0,0.00020821,3]
[334679974,1723468243095,-500.0,0.00020821,3]
[334679976,1723468243104,-564.08093968,0.00020821,3]
[334679978,1723468243114,-500.0,0.00020821,3]
[334679980,1723468243123,-500.0,0.00020821,3]
[334679982,1723468243133,-507.01067187,0.00020821,3]
[334679984,1723468243142,-405.2448557,0.00020821,3]
[334679986,1723468243153,-500.0,0.00020821,3]
[334679988,1723468243163,-500.0,0.00020821,3]
[334679990,1723468243172,-500.0,0.00020821,3]
[334679992,1723468243181,-200.15609373,0.00020821,3]
[334679994,1723468243190,-507.05572873,0.00020821,3]
[334679996,1723468243199,-500.0,0.00020821,3]
[334679998,1723468243209,-500.0,0.00020821,3]
[334680001,1723468243218,-503.17224724,0.00020821,3]
[334680004,1723468243228,-503.9623298,0.00020821,3]
[334680007,1723468243238,-500.0,0.00020821,3]
[334680010,1723468243248,-500.0,0.00020821,3]
[334680013,1723468243257,-500.0,0.00020821,3]
[334680016,1723468243267,-500.0,0.00020821,3]
[334680019,1723468243276,-500.0,0.00020821,3]
[334680022,1723468243286,-514.05,0.00020821,3]
[334680025,1723468243295,-500.0,0.00020821,3]
[334680028,1723468243305,-500.0,0.00020821,3]
[334680031,1723468243315,-500.0,0.00020821,3]
[334680034,1723468243326,-500.0,0.00020821,3]
[334680037,1723468243336,-504.78252744,0.00020821,3]
[334680040,1723468243346,-506.07141917,0.00020821,3]
[334680044,1723468243356,-500.0,0.00020821,3]
[334680047,1723468243365,-501.52233401,0.00020821,3]
[334680050,1723468243375,-500.0,0.00020821,3]
[334680053,1723468243385,-503.91882432,0.00020821,3]
[334680055,1723468243395,-500.0,0.00020821,3]
[334680057,1723468243406,-500.0,0.00020821,3]
[334680059,1723468243415,-500.0,0.00020821,3]
[334680061,1723468243424,-500.0,0.00020821,3]
[334680063,1723468243438,-503.41653541,0.00020821,3]
[334680065,1723468243449,-500.0,0.00020821,3]
[334680067,1723468243459,-500.0,0.00020821,3]
[334680084,1723468243611,-500.0,0.00020821,2]
[334680086,1723468243622,-500.0,0.00020821,3]
[334680088,1723468243633,-500.0,0.00020821,3]
[334680090,1723468243644,-512.68322596,0.00020821,3]
[334680092,1723468243661,-500.0,0.00020821,3]
[334680095,1723468243671,-629.27268015,0.00020821,3]
[334680097,1723468243681,-501.4743432,0.00020821,3]
[334680099,1723468243691,-505.70149761,0.00020821,3]
[334680101,1723468243700,-500.0,0.00020821,3]
[334680103,1723468243711,-605.36,0.00020821,3]
[334680105,1723468243723,-500.0,0.00020821,3]
[334680107,1723468243733,-502.6501975,0.00020821,3]
[334680109,1723468243743,-500.0,0.00020821,3]
[334680111,1723468243754,-500.0,0.00020821,3]
[334680113,1723468243763,-503.67086892,0.00020821,3]
[334680116,1723468243772,-500.0,0.00020821,3]
[334680118,1723468243783,-1093.3,0.00020821,3]
[334680120,1723468243793,-914.56,0.00020821,3]
[334680122,1723468243803,-500.0,0.00020821,3]
[334680124,1723468243813,-500.0,0.00020821,3]
[334680126,1723468243823,-500.0,0.00020821,3]
[334680128,1723468243833,-2631.68,0.00020821,3]
[334680130,1723468243843,-504.21239175,0.00020821,3]
[334680132,1723468243853,-502.38200505,0.00020821,3]
[334680134,1723468243863,-955.56,0.00020821,3]
[334680136,1723468243873,-509.39676028,0.00020821,3]
[334680138,1723468243882,-500.0,0.00020821,3]
[334680140,1723468243892,-500.0,0.00020821,3]
[334680142,1723468243904,-713.52,0.00020821,3]
[334680144,1723468243914,-500.0,0.00020821,3]
[334680146,1723468243923,-1209.9,0.00020821,3]
[334680148,1723468243933,-500.0,0.00020821,3]
[334680150,1723468243943,-508.82790382,0.00020821,3]
[334680152,1723468243953,-500.0,0.00020821,3]
[334680154,1723468243963,-1542.61,0.00020821,3]
[334680156,1723468243973,-501.98845617,0.00020821,3]
[334680158,1723468243982,-500.0,0.00020821,3]
[334680160,1723468243992,-506.19468139,0.00020821,3]
[334680162,1723468244001,-504.68628775,0.00020821,3]
[334680164,1723468244011,-500.0,0.00020821,3]
[334680166,1723468244021,-500.0,0.00020821,3]
[334680168,1723468244030,-500.0,0.00020821,3]
[334680169,1723468244040,-500.0,0.00020821,3]
[334680171,1723468244050,-500.0,0.00020821,3]
[334680172,1723468244059,-500.0,0.00020821,3]
[334680173,1723468244068,-500.0,0.00020821,3]
[334680174,1723468244078,-500.0,0.00020821,3]
[334680175,1723468244087,-552.43,0.00020821,3]
[334680176,1723468244097,-555.00322272,0.00020821,3]
[334680177,1723468244107,-500.0,0.00020821,3]
[334680178,1723468244116,-501.49390567,0.00020821,3]
[334680179,1723468244126,-500.0,0.00020821,3]
[334680180,1723468244135,-509.59232505,0.00020821,3]
[334680181,1723468244145,-422.79778272,0.00020821,3]
[334680182,1723468244158,-500.0,0.00020821,3]
[334680184,1723468244167,-500.0,0.00020821,3]
[334680186,1723468244176,-500.0,0.00020821,3]
[334680188,1723468244185,-325.65215929,0.00020821,3]
[334680190,1723468244194,-500.0,0.00020821,3]
[334680192,1723468244205,-508.3166345,0.00020821,3]
[334680194,1723468244215,-500.0,0.00020821,3]
[334680196,1723468244224,-500.0,0.00020821,3]
[334680198,1723468244234,-500.0,0.00020821,3]
[334680200,1723468244243,-500.0,0.00020821,3]
[334680202,1723468244254,-500.0,0.00020821,3]
[334680204,1723468244264,-500.0,0.00020821,3]
[334680206,1723468244274,-500.0,0.00020821,3]
[334680208,1723468244284,-503.3674401,0.00020821,3]
[334680210,1723468244293,-505.87900514,0.00020821,3]
[334680212,1723468244303,-500.0,0.00020821,3]
[334680214,1723468244312,-500.0,0.00020821,3]
[334680217,1723468244322,-500.0,0.00020821,3]
[334680219,1723468244332,-500.0,0.00020821,3]
[334680220,1723468244342,-500.0,0.00020821,3]
[334680223,1723468244351,-592.43,0.00020821,3]